bitfinex/quotes_BTCUSD_20241020
["timestamp","ask_amount","ask_price","bid_price","bid_amount"]
[1729466369545,0.46517857,69140.0,69139.0,0.04127185]
[1729466369758,0.46517857,69140.0,69139.0,0.04227185]
[1729466369972,0.46517857,69140.0,69139.0,0.04327185]
[1729466370175,0.46517857,69140.0,69139.0,0.02967461]
[1729466370578,0.46517857,69140.0,69139.0,0.02467461]
[1729466371251,0.46517857,69140.0,69139.0,0.02467876]
[1729466371667,0.46517857,69140.0,69139.0,0.03828218]
[1729466371893,0.46517857,69140.0,69139.0,0.03628218]
[1729466372123,0.46517857,69140.0,69139.0,0.03828218]
[1729466372549,0.46517857,69140.0,69139.0,0.03728218]
[1729466372987,0.46517857,69140.0,69139.0,0.03828218]
[1729466373636,0.46517857,69140.0,69139.0,0.03328218]
[1729466373853,0.46517857,69140.0,69139.0,0.01967876]
[1729466374485,0.001658,69140.0,69139.0,0.22389608]
[1729466374712,0.117365,69140.0,69139.0,0.1926]
[1729466374936,0.117365,69140.0,69139.0,0.22391819]
[1729466375347,0.26632415,69140.0,69139.0,0.04908069]
[1729466377317,0.26632415,69140.0,69139.0,0.05408069]
[1729466377556,0.48329566,69140.0,69139.0,0.05408069]
[1729466377775,0.26632415,69140.0,69139.0,0.06548348]
[1729466377992,0.26632415,69140.0,69139.0,0.04331819]
[1729466378203,0.26632415,69140.0,69139.0,0.03831819]
[1729466378634,0.26632415,69140.0,69139.0,0.03131819]
[1729466378862,0.11571,69138.0,69137.0,0.005]
[1729466379080,0.26466915,69138.0,69137.0,0.0472834]
[1729466379298,0.26466915,69138.0,69137.0,0.05870809]
[1729466379528,0.26466915,69138.0,69137.0,0.0472834]
[1729466379983,0.26466915,69138.0,69137.0,0.0482834]
[1729466380194,0.26466915,69138.0,69137.0,0.06659171]
[1729466381033,0.48164066,69138.0,69137.0,0.06159171]
[1729466381241,0.36466915,69138.0,69137.0,0.06159171]
[1729466381468,0.36466915,69138.0,69137.0,0.03349322]
[1729466381469,0.72395097,69138.0,69137.0,0.03349322]
[1729466381679,0.72395097,69138.0,69137.0,0.01979973]
[1729466381680,0.42386915,69138.0,69137.0,0.01979973]
[1729466381904,0.42386915,69138.0,69137.0,0.01879973]
[1729466382117,0.220723,69130.0,69123.0,0.01145051]
[1729466382327,0.220723,69130.0,69129.0,0.46557247]
[1729466382328,0.36968215,69130.0,69129.0,0.46557247]
[1729466383177,0.58665366,69130.0,69129.0,0.45183148]
[1729466383394,0.37668215,69130.0,69129.0,0.44083949]
[1729466384696,0.38468215,69130.0,69129.0,0.43397]
[1729466385170,0.37668215,69130.0,69129.0,0.43397]
[1729466385409,0.39968215,69130.0,69129.0,0.43497]
[1729466385904,0.39068215,69130.0,69129.0,0.43397]
[1729466386171,0.45188215,69130.0,69129.0,0.14544581]
[1729466386465,0.69185366,69130.0,69129.0,0.06034522]
[1729466386663,0.69185366,69130.0,69115.0,0.000828]
[1729466386664,0.220747,69116.0,69115.0,0.000828]
[1729466386927,0.36970615,69116.0,69115.0,0.00768168]
[1729466387176,0.36970615,69116.0,69115.0,0.000828]
[1729466389971,0.36970615,69116.0,69103.0,0.005]
[1729466389972,0.005,69103.0,69095.0,0.01368647]
[1729466390226,0.1,69104.0,69085.0,0.000818]
[1729466390227,0.215779,69097.0,69096.0,0.22381362]
[1729466390445,0.215779,69097.0,69096.0,0.00684211]
[1729466390446,0.36473815,69097.0,69096.0,0.00684211]
[1729466391570,0.36773815,69097.0,69096.0,0.00684211]
[1729466392426,0.36473815,69097.0,69096.0,0.00684211]
[1729466392645,0.36473815,69097.0,69096.0,0.00884211]
[1729466392894,0.36473815,69097.0,69096.0,0.002]
[1729466393135,0.36973815,69097.0,69096.0,0.002]
[1729466393835,0.36973815,69097.0,69096.0,0.001]
[1729466394319,0.25695915,69097.0,69088.0,0.000829]
[1729466394552,0.21579,69090.0,69089.0,0.00682719]
[1729466394760,0.36474915,69090.0,69089.0,0.00682719]
[1729466394972,0.1,69089.0,69088.0,0.005829]
[1729466395188,0.36475115,69089.0,69088.0,0.01265716]
[1729466396268,0.36475115,69089.0,69088.0,0.005829]
[1729466396486,0.36475115,69089.0,69088.0,0.000829]
[1729466396753,0.36475115,69089.0,69088.0,0.005829]
[1729466397177,0.36475115,69089.0,69088.0,0.000829]
[1729466397614,0.36475115,69089.0,69088.0,0.001829]
[1729466398076,0.36475115,69089.0,69088.0,0.002829]
[1729466398288,0.36475115,69089.0,69088.0,0.000829]
[1729466398500,0.36475115,69089.0,69088.0,0.006829]
[1729466398708,0.36475115,69089.0,69088.0,0.007829]
[1729466399581,0.36475115,69089.0,69088.0,0.01465087]
[1729466399806,0.36475115,69089.0,69088.0,0.0146508]
[1729466400455,0.36475115,69089.0,69088.0,0.01465152]
[1729466400679,0.36475115,69089.0,69088.0,0.01965152]
[1729466400900,0.21697151,69104.0,69088.0,0.01965152]
[1729466400901,0.11578,69096.0,69095.0,0.01]
[1729466401123,0.26473915,69096.0,69095.0,0.09472252]
[1729466401565,0.115779,69097.0,69095.0,0.28673919]
[1729466401773,0.26473815,69097.0,69096.0,0.02773919]
[1729466402253,0.005,69116.0,69104.0,0.005]
[1729466402467,0.115765,69105.0,69104.0,0.1861]
[1729466402692,0.115765,69105.0,69095.0,0.001]
[1729466402693,0.14895915,69105.0,69098.0,0.005]
[1729466402928,0.236514,69110.0,69096.0,0.005]
[1729466402929,0.115779,69097.0,69096.0,0.005]
[1729466403140,0.26473815,69097.0,69096.0,0.01774503]
[1729466403357,0.26473815,69097.0,69096.0,0.02274503]
[1729466403576,0.26473815,69097.0,69096.0,0.02374503]
[1729466403794,0.26473815,69097.0,69096.0,0.02974503]
[1729466404010,0.26473815,69097.0,69096.0,0.02374503]
[1729466404214,0.26473815,69097.0,69096.0,0.02274503]
[1729466404441,0.26473815,69097.0,69096.0,0.02474503]
[1729466404667,0.26473815,69097.0,69096.0,0.02974503]
[1729466405116,0.447317,69101.0,69100.0,0.0926]
[1729466405369,0.49627615,69101.0,69100.0,0.11034503]
[1729466405586,0.49627615,69101.0,69100.0,0.12401143]
[1729466406272,0.49627615,69101.0,69100.0,0.12401751]
[1729466407839,0.49627615,69101.0,69100.0,0.12501751]
[1729466408060,0.49627615,69101.0,69100.0,0.12601751]
[1729466408275,0.49627615,69101.0,69100.0,0.12501751]
[1729466408489,0.49627615,69101.0,69100.0,0.30931751]
[1729466408703,0.49627615,69101.0,69100.0,0.32009947]
[1729466408923,0.49627615,69101.0,69100.0,0.33147518]
[1729466409153,0.49627615,69101.0,69100.0,0.32009947]
[1729466409363,0.49627615,69101.0,69100.0,0.31909947]
[1729466409587,0.115767,69104.0,69103.0,0.01]
[1729466409800,0.115765,69105.0,69104.0,0.1933]
[1729466410019,0.01850676,69117.0,69112.0,0.01]
[1729466410020,0.115752,69113.0,69112.0,0.01]
[1729466410260,0.11575,69114.0,69113.0,0.01]
[1729466410493,0.48168066,69114.0,69113.0,0.04153]
[1729466410706,0.26470915,69114.0,69113.0,0.06375796]
[1729466411156,0.26470915,69114.0,69113.0,0.05233215]
[1729466411374,0.26470915,69114.0,69113.0,0.01]
[1729466411586,0.36470915,69114.0,69113.0,0.011]
[1729466412727,0.36470915,69114.0,69113.0,0.0706717]
[1729466412947,0.36470915,69114.0,69113.0,0.0716717]
[1729466413162,0.36470915,69114.0,69113.0,0.07166887]
[1729466413407,0.36470915,69114.0,69113.0,0.05437264]
[1729466413650,0.36470915,69114.0,69113.0,0.04010801]
[1729466413863,0.36470915,69114.0,69113.0,0.07166101]
[1729466414500,0.36470915,69114.0,69113.0,0.05436525]
[1729466415341,0.26470915,69114.0,69113.0,0.05436525]
[1729466416447,0.26470915,69114.0,69113.0,0.07165874]
[1729466416662,0.26470915,69114.0,69113.0,0.05436525]
[1729466418263,0.26470915,69114.0,69113.0,0.012]
[1729466418477,0.26470915,69114.0,69113.0,0.0657657]
[1729466418696,0.26470915,69114.0,69113.0,0.0657656]
[1729466418941,0.26470915,69114.0,69113.0,0.05433903]
[1729466419371,0.26470915,69114.0,69113.0,0.06576456]
[1729466419821,0.26470915,69114.0,69113.0,0.05433903]
[1729466420019,0.26470915,69114.0,69113.0,0.06576461]
[1729466420887,0.26470915,69114.0,69113.0,0.05433903]
[1729466421568,0.26470915,69114.0,69113.0,0.05494895]
[1729466421989,0.26470915,69114.0,69113.0,0.04398392]
[1729466422219,0.26470915,69114.0,69113.0,0.012]
[1729466422667,0.26470915,69114.0,69113.0,0.012829]
[1729466422884,0.26470915,69114.0,69113.0,0.05515251]
[1729466424414,0.26470915,69114.0,69113.0,0.02362882]
[1729466424650,0.26470915,69114.0,69113.0,0.05515642]
[1729466424868,0.26470915,69114.0,69113.0,0.05515665]
[1729466425084,0.26470915,69114.0,69113.0,0.06658168]
[1729466425538,0.26470915,69114.0,69113.0,0.05515665]
[1729466425794,0.233154,69115.0,69113.0,0.05515665]
[1729466425795,0.001656,69115.0,69114.0,0.01]
[1729466426040,0.001656,69115.0,69114.0,0.47445737]
[1729466426285,0.21697151,69129.0,69128.0,0.01]
[1729466426513,0.33269651,69129.0,69128.0,0.32642765]
[1729466426992,0.001656,69130.0,69129.0,0.01]
[1729466427235,0.001656,69130.0,69129.0,0.44963237]
[1729466429029,0.001656,69130.0,69129.0,0.33390737]
[1729466429266,0.001656,69130.0,69129.0,0.35650702]
[1729466429500,0.001656,69130.0,69129.0,0.47223202]
[1729466429753,0.001656,69130.0,69129.0,0.47323202]
[1729466430463,0.001656,69130.0,69129.0,0.48323202]
[1729466430936,0.001656,69130.0,69129.0,0.36250702]
[1729466431168,0.001656,69130.0,69129.0,0.35750702]
[1729466431413,0.001656,69130.0,69129.0,0.33590737]
[1729466431665,0.001656,69130.0,69129.0,0.35750702]
[1729466431901,0.001656,69130.0,69129.0,0.45163237]
[1729466432132,0.001656,69130.0,69129.0,0.47327846]
[1729466432382,0.001656,69130.0,69129.0,0.48327846]
[1729466433803,0.001656,69130.0,69129.0,0.89564881]
[1729466436186,0.21697151,69137.0,69136.0,0.09]
[1729466436407,0.21697151,69137.0,69136.0,0.12157427]
[1729466436622,0.21697151,69137.0,69136.0,0.13237409]
[1729466436838,0.115711,69138.0,69137.0,0.005]
[1729466437053,0.115711,69138.0,69137.0,0.24107409]
[1729466437273,0.115711,69138.0,69137.0,0.25237525]
[1729466437507,0.115711,69138.0,69137.0,0.24597081]
[1729466437933,0.115711,69138.0,69137.0,0.24697081]
[1729466438381,0.115711,69138.0,69137.0,0.25837381]
[1729466439270,0.115711,69138.0,69137.0,0.25937381]
[1729466439483,0.115711,69138.0,69137.0,0.24795633]
[1729466440369,0.26467015,69138.0,69137.0,0.24795633]
[1729466441027,0.26467015,69138.0,69137.0,0.05425633]
[1729466442618,0.231409,69142.0,69139.0,0.005]
[1729466442853,0.001638,69158.0,69139.0,0.46522088]
[1729466443134,0.001638,69158.0,69148.0,0.318693]
[1729466443135,0.21697151,69149.0,69148.0,0.318693]
[1729466443349,0.21486871,69149.0,69148.0,0.86102508]
[1729466443567,0.15061715,69155.0,69148.0,0.86102508]
[1729466443568,0.001658,69155.0,69154.0,0.130683]
[1729466443783,0.001658,69155.0,69154.0,0.67297508]
[1729466444005,0.001658,69155.0,69154.0,0.70101475]
[1729466444442,0.001658,69155.0,69154.0,0.58033175]
[1729466444667,0.11734,69155.0,69154.0,0.58033175]
[1729466445597,0.11734,69155.0,69154.0,0.56407657]
[1729466445828,0.11734,69155.0,69154.0,0.58233175]
[1729466446056,0.11734,69155.0,69154.0,0.58133175]
[1729466446302,0.001658,69155.0,69154.0,0.58133175]
[1729466446564,0.001658,69155.0,69154.0,0.55329208]
[1729466446817,0.001658,69155.0,69154.0,0.58228938]
[1729466447068,0.001658,69155.0,69154.0,0.58128938]
[1729466447561,0.001658,69155.0,69154.0,0.60188113]
[1729466448055,0.001658,69155.0,69154.0,0.62441752]
[1729466448288,0.001658,69155.0,69154.0,0.60288113]
[1729466448525,0.001658,69155.0,69154.0,0.57488383]
[1729466448775,0.11568,69156.0,69154.0,0.57488383]
[1729466448776,0.11568,69156.0,69154.0,0.60393212]
[1729466449040,0.115679,69157.0,69155.0,0.03148208]
[1729466449286,0.115679,69157.0,69155.0,0.01]
[1729466449287,0.26463915,69156.0,69155.0,0.01]
[1729466449549,0.26463915,69156.0,69155.0,0.06957918]
[1729466450820,0.26463915,69156.0,69155.0,0.07057918]
[1729466451281,0.26463915,69156.0,69155.0,0.06557918]
[1729466452229,0.26463915,69156.0,69155.0,0.04830436]
[1729466452468,0.26463915,69156.0,69155.0,0.26759146]
[1729466452469,0.14895915,69156.0,69155.0,0.26759146]
[1729466452729,0.001638,69158.0,69157.0,0.159598]
[1729466453016,0.001638,69158.0,69157.0,0.26136466]
[1729466453280,0.001638,69158.0,69157.0,0.70016466]
[1729466453797,0.001638,69158.0,69157.0,0.70015523]
[1729466455037,0.001638,69158.0,69157.0,0.70615523]
[1729466455514,0.001638,69158.0,69157.0,0.56155723]
[1729466455750,0.001638,69158.0,69157.0,0.56255723]
[1729466456660,0.001638,69158.0,69157.0,0.70715523]
[1729466457114,0.001638,69158.0,69157.0,0.56255723]
[1729466457331,0.001638,69158.0,69157.0,0.55255723]
[1729466457546,0.146234,69158.0,69157.0,0.5309605]
[1729466457769,0.001638,69158.0,69157.0,0.5309605]
[1729466457982,0.146234,69158.0,69157.0,0.5309605]
[1729466458275,0.001638,69159.0,69157.0,0.50939148]
[1729466458488,0.146232,69159.0,69158.0,0.06959148]
[1729466458932,0.146232,69159.0,69158.0,0.09118821]
[1729466459181,0.146232,69159.0,69158.0,0.11175723]
[1729466459399,0.146232,69159.0,69158.0,0.06959148]
[1729466459864,0.146232,69159.0,69158.0,0.07059148]
[1729466460080,0.146232,69159.0,69158.0,0.07222948]
[1729466460540,0.001638,69159.0,69158.0,0.07222948]
[1729466460903,0.001638,69159.0,69158.0,0.04414971]
[1729466461125,0.001638,69159.0,69158.0,0.072225]
[1729466461331,0.001638,69159.0,69158.0,0.073225]
[1729466461546,0.001638,69159.0,69158.0,0.23941738]
[1729466461984,0.001638,69159.0,69158.0,0.217821]
[1729466462285,0.15059715,69159.0,69158.0,0.08982138]
[1729466462498,0.39519115,69159.0,69158.0,0.03514971]
[1729466463192,0.39519115,69159.0,69158.0,0.04414971]
[1729466463498,0.001638,69159.0,69158.0,0.04279749]
[1729466463725,0.008638,69159.0,69158.0,0.05560053]
[1729466463969,0.008638,69159.0,69158.0,0.08368437]
[1729466464194,0.008638,69159.0,69158.0,0.08768437]
[1729466464642,0.008638,69159.0,69158.0,0.08868437]
[1729466464875,0.001638,69159.0,69158.0,0.08768437]
[1729466465336,0.001638,69159.0,69158.0,0.52047437]
[1729466465764,0.001638,69159.0,69158.0,0.52147437]
[1729466466706,0.001638,69159.0,69158.0,0.52247437]
[1729466466926,0.001638,69159.0,69158.0,0.46323104]
[1729466467150,0.001638,69159.0,69158.0,0.50418898]
[1729466467340,0.001638,69159.0,69158.0,0.52246847]
[1729466467582,0.001638,69159.0,69158.0,0.52246848]
[1729466468256,0.001638,69159.0,69158.0,0.56463687]
[1729466468464,0.001638,69159.0,69158.0,0.54406785]
[1729466469359,0.001638,69159.0,69158.0,0.54489585]
[1729466472034,0.001638,69159.0,69158.0,0.46405904]
[1729466472245,0.146232,69159.0,69158.0,0.45905904]
[1729466472459,0.29519115,69159.0,69158.0,0.45905904]
[1729466473104,0.29519115,69159.0,69158.0,0.48929745]
[1729466473321,0.29519115,69159.0,69158.0,0.51144645]
[1729466473555,0.39519115,69159.0,69158.0,0.46949441]
[1729466473781,0.40219115,69159.0,69158.0,0.4559117]
[1729466474047,0.40219115,69159.0,69158.0,0.44404634]
[1729466474263,0.50999115,69159.0,69158.0,0.438256]
[1729466474531,0.50999115,69159.0,69158.0,0.437256]
[1729466474742,0.5530511,69159.0,69158.0,0.437256]
[1729466474973,0.50799115,69159.0,69158.0,0.438256]
[1729466475214,0.50799115,69159.0,69158.0,0.437256]
[1729466475420,0.50799115,69159.0,69149.0,0.000828]
[1729466475421,0.005,69151.0,69149.0,0.000828]
[1729466475637,0.39357215,69150.0,69149.0,0.000828]
[1729466476105,0.39357215,69150.0,69149.0,0.00760786]
[1729466476326,0.39357215,69150.0,69149.0,0.0076045]
[1729466476541,0.39357215,69150.0,69149.0,0.000828]
[1729466476969,0.39357215,69150.0,69149.0,0.00760398]
[1729466477442,0.39357215,69150.0,69149.0,0.000828]
[1729466477659,0.39457215,69150.0,69149.0,0.000828]
[1729466478770,0.40157215,69150.0,69149.0,0.001828]
[1729466478983,0.40057215,69150.0,69149.0,0.001828]
[1729466479197,0.40557215,69150.0,69149.0,0.001828]
[1729466479852,0.40057215,69150.0,69149.0,0.001828]
[1729466480527,0.40757215,69150.0,69149.0,0.001828]
[1729466480711,0.40957215,69150.0,69149.0,0.001828]
[1729466481198,0.40757215,69150.0,69149.0,0.001828]
[1729466481968,0.40957215,69150.0,69149.0,0.001828]
[1729466482184,0.40757215,69150.0,69149.0,0.001828]
[1729466483322,0.75276528,69150.0,69149.0,0.001828]
[1729466483539,0.75276528,69150.0,69130.0,0.005]
[1729466483540,0.002,69142.0,69130.0,0.005]
[1729466483800,0.144648,69133.0,69132.0,0.21697151]
[1729466484026,0.389293,69134.0,69115.0,0.000829]
[1729466484027,0.144684,69116.0,69115.0,0.000829]
[1729466484253,0.144684,69116.0,69115.0,0.01841468]
[1729466484480,0.144684,69116.0,69115.0,0.02841468]
[1729466485790,0.144684,69116.0,69115.0,0.02941468]
[1729466486229,0.29364315,69116.0,69115.0,0.02941468]
[1729466486913,0.29364315,69116.0,69115.0,0.03041468]
[1729466487141,0.29364315,69116.0,69115.0,0.02941468]
[1729466488451,0.29364315,69116.0,69115.0,0.03041468]
[1729466490006,0.29364315,69116.0,69115.0,0.012829]
[1729466490228,0.29364315,69116.0,69115.0,0.0303791]
[1729466492228,0.29364315,69116.0,69115.0,0.04375249]
[1729466494483,0.29338107,69116.0,69115.0,0.04375249]
[1729466495632,0.29338107,69116.0,69115.0,0.03375249]
[1729466496098,0.29338107,69116.0,69115.0,0.03275249]
[1729466496540,0.51035258,69116.0,69115.0,0.03275249]
[1729466496832,0.29338107,69116.0,69115.0,0.0193791]
[1729466497045,0.29338107,69116.0,69115.0,0.0303791]
[1729466497297,0.29338107,69116.0,69115.0,0.04376262]
[1729466497537,0.29338107,69116.0,69115.0,0.012829]
[1729466497768,0.29338107,69116.0,69115.0,0.04360936]
[1729466498012,0.29338107,69116.0,69115.0,0.04260936]
[1729466498490,0.29338107,69116.0,69115.0,0.04360936]
[1729466498712,0.29338107,69116.0,69115.0,0.04260936]
[1729466499223,0.29338107,69116.0,69115.0,0.04360936]
[1729466499932,0.29338107,69116.0,69115.0,0.0547636]
[1729466500162,0.29338107,69116.0,69115.0,0.04360936]
[1729466501397,0.29338107,69116.0,69115.0,0.05441127]
[1729466503459,0.29338107,69116.0,69115.0,0.23991127]
[1729466504337,0.26080642,69116.0,69115.0,0.23991127]
[1729466504976,0.26080642,69116.0,69115.0,0.2292238]
[1729466505191,0.26080642,69116.0,69115.0,0.24003467]
[1729466505660,0.26080642,69116.0,69115.0,0.05453467]
[1729466506297,0.47777793,69116.0,69115.0,0.04453467]
[1729466506516,0.47777793,69116.0,69115.0,0.0337238]
[1729466506517,0.36080642,69116.0,69115.0,0.0337238]
[1729466507422,0.36080642,69116.0,69115.0,0.0327238]
[1729466507656,0.36080642,69116.0,69115.0,0.04492257]
[1729466507887,0.36080642,69116.0,69115.0,0.0327238]
[1729466508117,0.36080642,69116.0,69115.0,0.04253969]
[1729466508334,0.36080642,69116.0,69115.0,0.04353969]
[1729466508544,0.36280642,69116.0,69115.0,0.04355874]
[1729466508757,0.36280642,69116.0,69115.0,0.12176115]
[1729466508970,0.36080642,69116.0,69115.0,0.12176115]
[1729466509182,0.36080642,69116.0,69115.0,0.13176115]
[1729466510235,0.36080642,69116.0,69115.0,0.13276115]
[1729466511299,0.36080642,69116.0,69115.0,0.15008821]
[1729466511730,0.144671,69122.0,69121.0,0.01]
[1729466511953,0.29363015,69122.0,69121.0,0.06905921]
[1729466512635,0.29363015,69122.0,69121.0,0.01]
[1729466512847,0.29363015,69122.0,69121.0,0.04081028]
[1729466513069,0.39363015,69122.0,69121.0,0.06997661]
[1729466513316,0.39363015,69122.0,69121.0,0.0916572]
[1729466513561,0.39363015,69122.0,69121.0,0.0926572]
[1729466513990,0.39363015,69122.0,69121.0,0.0916572]
[1729466514202,0.39363015,69122.0,69121.0,0.0906572]
[1729466514422,0.39363015,69122.0,69121.0,0.11177203]
[1729466514647,0.39363015,69122.0,69121.0,0.07097661]
[1729466515554,0.39528815,69122.0,69121.0,0.07097661]
[1729466515783,0.39528815,69122.0,69121.0,0.06997661]
[1729466516015,0.39528815,69122.0,69121.0,0.0700095]
[1729466516667,0.39528815,69122.0,69121.0,0.0710095]
[1729466516878,0.39528815,69122.0,69121.0,0.0926867]
[1729466517322,0.39528815,69122.0,69121.0,0.0710095]
[1729466518213,0.39528815,69122.0,69121.0,0.09268509]
[1729466518452,0.39528815,69122.0,69121.0,0.0710095]
[1729466518868,0.29528815,69122.0,69121.0,0.0710095]
[1729466519082,0.29528815,69122.0,69121.0,0.54616675]
[1729466519083,0.001658,69122.0,69121.0,0.54616675]
[1729466519522,0.144656,69130.0,69129.0,0.01]
[1729466519712,0.144653,69131.0,69130.0,0.01]
[1729466519989,0.144653,69131.0,69130.0,0.06248904]
[1729466520210,0.144653,69131.0,69130.0,0.09067124]
[1729466520662,0.36160251,69141.0,69140.0,0.01]
[1729466520887,0.36160251,69141.0,69140.0,0.09833931]
[1729466521109,0.36160251,69141.0,69140.0,0.12915437]
[1729466521324,0.144631,69141.0,69140.0,0.14649726]
[1729466521974,0.244631,69141.0,69140.0,0.13009864]
[1729466522196,0.578505,69144.0,69143.0,0.01]
[1729466522197,0.144625,69144.0,69143.0,0.01]
[1729466522425,0.144619,69147.0,69146.0,0.01]
[1729466522648,0.144619,69147.0,69146.0,0.04077744]
[1729466522864,0.144619,69147.0,69146.0,0.06891019]
[1729466523549,0.144619,69147.0,69146.0,0.05159773]
[1729466523768,0.144619,69147.0,69146.0,0.05659773]
[1729466523984,0.144619,69147.0,69146.0,0.07491019]
[1729466524414,0.144619,69147.0,69146.0,0.05859773]
[1729466525720,0.144619,69147.0,69146.0,0.04768261]
[1729466525959,0.144619,69147.0,69146.0,0.05846982]
[1729466527538,0.144619,69147.0,69146.0,0.04768261]
[1729466528746,0.144619,69147.0,69146.0,0.04268261]
[1729466528747,0.29357815,69147.0,69146.0,0.04268261]
[1729466529183,0.29357815,69147.0,69146.0,0.02934154]
[1729466529416,0.29357815,69147.0,69146.0,0.04266832]
[1729466530315,0.29357815,69147.0,69146.0,0.02934154]
[1729466531233,0.29357815,69147.0,69146.0,0.01866951]
[1729466531869,0.29357815,69147.0,69146.0,0.01366951]
[1729466532092,0.29357815,69147.0,69146.0,0.00866951]
[1729466532522,0.29357815,69147.0,69146.0,0.01366951]
[1729466532743,0.29357815,69147.0,69146.0,0.01266951]
[1729466532959,0.29357815,69147.0,69146.0,0.01166951]
[1729466533149,0.29357815,69147.0,69146.0,0.01366951]
[1729466533408,0.29357815,69147.0,69146.0,0.01262858]
[1729466533597,0.29357815,69147.0,69146.0,0.01162858]
[1729466533885,0.29357815,69147.0,69146.0,0.01262858]
[1729466534100,0.29357815,69147.0,69146.0,0.01262901]
[1729466534281,0.29357815,69147.0,69146.0,0.01762901]
[1729466535023,0.29357815,69147.0,69146.0,0.01862901]
[1729466536856,0.29357815,69147.0,69146.0,0.01863119]
[1729466537329,0.39357815,69147.0,69146.0,0.00863119]
[1729466538012,0.39357815,69147.0,69146.0,0.01363119]
[1729466538235,0.39357815,69147.0,69146.0,0.01363542]
[1729466538454,0.39357815,69147.0,69146.0,0.01263542]
[1729466538897,0.39357815,69147.0,69146.0,0.01363542]
[1729466539111,0.39357815,69147.0,69146.0,0.01863542]
[1729466539334,0.39357815,69147.0,69146.0,0.11005724]
[1729466539781,0.39657815,69147.0,69146.0,0.10905724]
[1729466540241,0.29523415,69147.0,69146.0,0.10905724]
[1729466540460,0.29823415,69147.0,69146.0,0.0928]
[1729466540681,0.29523415,69147.0,69146.0,0.11003513]
[1729466540899,0.146275,69147.0,69146.0,0.11003513]
[1729466541127,0.001656,69147.0,69146.0,0.11103513]
[1729466541349,0.146275,69147.0,69146.0,0.11103513]
[1729466541574,0.146275,69147.0,69146.0,0.12429406]
[1729466541813,0.29523415,69147.0,69146.0,0.12429406]
[1729466542238,0.29523415,69147.0,69146.0,0.04249406]
[1729466543331,0.29523415,69147.0,69146.0,0.04049406]
[1729466543553,0.29623415,69147.0,69146.0,0.04049406]
[1729466545177,0.29523415,69147.0,69146.0,0.04049406]
[1729466545392,0.29623415,69147.0,69146.0,0.04049406]
[1729466546267,0.29623415,69147.0,69146.0,0.01]
[1729466546506,0.29623415,69147.0,69146.0,0.04054229]
[1729466548040,0.29623415,69147.0,69146.0,0.04054773]
[1729466551815,0.29623415,69147.0,69146.0,0.0404853]
[1729466552246,0.61320566,69147.0,69146.0,0.04128739]
[1729466552464,0.61320566,69147.0,69146.0,0.0304853]
[1729466552465,0.39623415,69147.0,69146.0,0.0304853]
[1729466552929,0.39523415,69147.0,69146.0,0.0304853]
[1729466553141,0.39523415,69147.0,69146.0,0.0314853]
[1729466553369,0.39523415,69147.0,69146.0,0.0324853]
[1729466553590,0.39523415,69147.0,69146.0,0.0314853]
[1729466553809,0.39523415,69147.0,69146.0,0.0304853]
[1729466554506,0.40123415,69147.0,69146.0,0.0304853]
[1729466555391,0.40123415,69147.0,69145.0,0.005]
[1729466555392,0.244621,69146.0,69145.0,0.005]
[1729466555613,0.39358015,69146.0,69145.0,0.03551244]
[1729466556982,0.39858015,69146.0,69145.0,0.03551244]
[1729466557414,0.40358015,69146.0,69145.0,0.03551629]
[1729466559017,0.40358015,69146.0,69145.0,0.03552693]
[1729466563428,0.66775166,69146.0,69145.0,0.03052693]
[1729466563647,0.45778015,69146.0,69145.0,0.01725354]
[1729466563872,0.45778015,69146.0,69145.0,0.00663566]
[1729466564104,0.54427766,69146.0,69145.0,0.00663566]
[1729466564358,0.244644,69135.0,69134.0,0.1812]
[1729466564611,0.244644,69135.0,69134.0,0.19843981]
[1729466564612,0.39360315,69135.0,69134.0,0.19843981]
[1729466564839,0.39360315,69135.0,69134.0,0.01723981]
[1729466565091,0.39360315,69135.0,69134.0,0.00663038]
[1729466565311,0.43694106,69135.0,69134.0,0.00663038]
[1729466565533,0.76453381,69135.0,69134.0,0.00763038]
[1729466565874,0.76453381,69135.0,69134.0,0.001]
[1729466565875,0.44880315,69135.0,69134.0,0.001]
[1729466566180,0.51281002,69135.0,69134.0,0.001]
[1729466566637,0.45280315,69135.0,69134.0,0.001]
[1729466566850,0.244659,69128.0,69127.0,0.000828]
[1729466567066,0.39361815,69128.0,69127.0,0.00745337]
[1729466567955,0.39361815,69128.0,69127.0,0.000828]
[1729466568207,0.52980224,69128.0,69127.0,0.00745024]
[1729466568453,0.52980224,69128.0,69113.0,0.000829]
[1729466568454,0.244684,69116.0,69113.0,0.000829]
[1729466568675,0.39364315,69116.0,69115.0,0.00744912]
[1729466569351,0.39364315,69116.0,69115.0,0.005829]
[1729466569856,0.39864315,69116.0,69115.0,0.005829]
[1729466570296,0.39364315,69116.0,69115.0,0.005829]
[1729466570510,0.40064315,69116.0,69115.0,0.005829]
[1729466570936,0.40764315,69116.0,69115.0,0.005829]
[1729466571175,0.40764315,69116.0,69115.0,0.000829]
[1729466571402,0.40764315,69116.0,69115.0,0.005829]
[1729466578633,0.40764315,69116.0,69115.0,0.21189963]
[1729466579033,0.40764315,69116.0,69115.0,0.22241234]
[1729466579459,0.40064315,69116.0,69115.0,0.22241234]
[1729466579838,0.39364315,69116.0,69115.0,0.22241234]
[1729466580511,0.39364315,69116.0,69115.0,0.22241435]
[1729466583676,0.39364315,69116.0,69115.0,0.205329]
[1729466584726,0.39364315,69116.0,69115.0,0.22245702]
[1729466589040,0.39364315,69116.0,69115.0,0.23564908]
[1729466589240,0.289332,69125.0,69124.0,0.01]
[1729466589484,0.289332,69125.0,69124.0,0.24342008]
[1729466589485,0.58295615,69125.0,69124.0,0.24342008]
[1729466590439,0.58795615,69125.0,69124.0,0.24342008]
[1729466590644,0.68795615,69125.0,69124.0,0.24342008]
[1729466590896,0.68295615,69125.0,69124.0,0.24342008]
[1729466593153,0.68224476,69125.0,69124.0,0.23842008]
[1729466593407,0.68224476,69125.0,69124.0,0.15142008]
[1729466593661,0.68224476,69125.0,69124.0,0.01712802]
[1729466593884,0.24895915,69125.0,69118.0,0.1211]
[1729466594094,0.244678,69119.0,69118.0,0.1211]
[1729466594304,0.39363715,69119.0,69118.0,0.13828691]
[1729466594736,0.39363715,69119.0,69118.0,0.00661003]
[1729466596059,0.39291818,69119.0,69118.0,0.00661003]
[1729466596201,0.39791818,69119.0,69118.0,3e-08]
[1729466596464,0.149684,69116.0,69115.0,0.000829]
[1729466596639,0.39864315,69116.0,69115.0,0.000829]
[1729466598054,0.40564315,69116.0,69115.0,0.000829]